fUST/lending_fUST_20260528
["ID","MTS","AMOUNT","RATE_DAILY","PERIOD"]
[423175419,1779904241000,-300.0,8.382e-05,2]
[423175415,1779904241000,-300.0,8.382e-05,2]
[423175454,1779904241000,-232.86495608,8.493e-05,2]
[423175421,1779904241000,-300.0,8.382e-05,2]
[423175425,1779904241000,-300.0,8.382e-05,2]
[423175429,1779904241000,-300.0,8.382e-05,2]
[423175432,1779904241000,-300.0,8.382e-05,2]
[423175435,1779904241000,-300.0,8.382e-05,2]
[423175437,1779904241000,-300.0,8.382e-05,2]
[423175439,1779904241000,-300.0,8.382e-05,2]
[423175440,1779904241000,-296.75,8.493e-05,2]
[423175444,1779904241000,-489.6,8.493e-05,2]
[423175442,1779904241000,-500.0,8.493e-05,2]
[423175446,1779904241000,-452.45,8.493e-05,2]
[423175448,1779904241000,-500.0,8.493e-05,2]
[423175450,1779904241000,-400.94,8.493e-05,2]
[423175423,1779904241000,-300.0,8.382e-05,2]
[423175510,1779904241000,-586.89,8.493e-05,2]
[423175539,1779904241000,-500.0,8.493e-05,2]
[423175512,1779904241000,-500.0,8.493e-05,2]
[423175577,1779904241000,-500.0,8.493e-05,2]
[423175579,1779904241000,-500.0,8.493e-05,2]
[423175584,1779904241000,-500.0,8.493e-05,2]
[423175586,1779904241000,-500.37085642,8.493e-05,2]
[423175587,1779904241000,-314.9106476,8.493e-05,2]
[423175602,1779904241000,-500.0,8.493e-05,2]
[423175600,1779904241000,-185.0893524,8.493e-05,2]
[423175604,1779904241000,-500.0,8.493e-05,2]
[423175606,1779904241000,-600.0,8.549e-05,2]
[423175608,1779904241000,-156.12,8.767e-05,2]
[423175612,1779904241000,-464.26,8.767e-05,2]
[423175610,1779904241000,-336.65,8.767e-05,2]
[423175573,1779904241000,-500.0,8.493e-05,2]
[423175614,1779904241000,-500.0,8.767e-05,2]
[423175628,1779904241000,-500.0,8.767e-05,2]
[423175626,1779904241000,-500.0,8.767e-05,2]
[423175617,1779904241000,-346.22,8.767e-05,2]
[423175630,1779904241000,-500.0,8.767e-05,2]
[423175623,1779904241000,-500.0,8.767e-05,2]
[423175621,1779904241000,-500.0,8.767e-05,2]
[423175619,1779904241000,-214.29,8.767e-05,2]
[423175625,1779904241000,-492.98,8.767e-05,2]
[423175632,1779904241000,-500.0,8.767e-05,2]
[423175634,1779904241000,-500.0,8.767e-05,2]
[423175636,1779904241000,-500.0,8.767e-05,2]
[423175502,1779904241000,-500.0,8.493e-05,2]
[423175616,1779904241000,-500.0,8.767e-05,2]
[423175572,1779904241000,-500.0,8.493e-05,2]
[423175581,1779904241000,-500.0,8.493e-05,2]
[423175570,1779904241000,-500.0,8.493e-05,2]
[423175508,1779904241000,-610.26,8.493e-05,2]
[423175519,1779904241000,-500.0,8.493e-05,2]
[423175521,1779904241000,-500.0,8.493e-05,2]
[423175523,1779904241000,-501.04468815,8.493e-05,2]
[423175525,1779904241000,-500.0,8.493e-05,2]
[423175527,1779904241000,-500.0,8.493e-05,2]
[423175531,1779904241000,-500.0,8.493e-05,2]
[423175535,1779904241000,-500.0,8.493e-05,2]
[423175537,1779904241000,-500.0,8.493e-05,2]
[423175575,1779904241000,-500.0,8.493e-05,2]
[423175533,1779904241000,-196.98,8.493e-05,2]
[423175541,1779904241000,-500.0,8.493e-05,2]
[423175542,1779904241000,-500.0,8.493e-05,2]
[423175548,1779904241000,-500.0,8.493e-05,2]
[423175529,1779904241000,-424.70818865,8.493e-05,2]
[423175550,1779904241000,-500.0,8.493e-05,2]
[423175568,1779904241000,-363.85281819,8.493e-05,2]
[423175544,1779904241000,-500.0,8.493e-05,2]
[423175559,1779904241000,-500.0,8.493e-05,2]
[423175557,1779904241000,-500.0,8.493e-05,2]
[423175555,1779904241000,-2416.47,8.493e-05,2]
[423175561,1779904241000,-500.0,8.493e-05,2]
[423175566,1779904241000,-500.0,8.493e-05,2]
[423175565,1779904241000,-500.0,8.493e-05,2]
[423175563,1779904241000,-500.0,8.493e-05,2]
[423175552,1779904241000,-500.0,8.493e-05,2]
[423175546,1779904241000,-545.49,8.493e-05,2]
[423175553,1779904241000,-500.0,8.493e-05,2]
[423175649,1779904242000,-1562.68814018,8.767e-05,2]
[423175640,1779904242000,-500.0,8.767e-05,2]
[423175638,1779904242000,-500.0,8.767e-05,2]
[423175645,1779904242000,-500.0,8.767e-05,2]
[423175643,1779904242000,-384.01,8.767e-05,2]
[423175641,1779904242000,-500.0,8.767e-05,2]
[423175654,1779904242000,-308.32767543,8.767e-05,2]
[423175651,1779904242000,-500.0,8.767e-05,2]
[423175647,1779904242000,-853.78185982,8.767e-05,2]
[423175652,1779904242000,-12.32184016,8.767e-05,2]
[423175658,1779904242000,-500.0,8.767e-05,2]
[423175657,1779904242000,-500.0,8.767e-05,2]
[423175665,1779904242000,-322.33133922,9.041e-05,2]
[423175664,1779904242000,-500.0,9.041e-05,2]
[423175662,1779904242000,-534.79,8.219e-05,2]
[423175663,1779904242000,-449.18671005,8.767e-05,2]
[423175655,1779904242000,-500.0,8.219e-05,2]
[423175661,1779904242000,-50.81328995,8.767e-05,2]
[423175659,1779904242000,-17.60150969,8.767e-05,2]
[423175656,1779904242000,-179.35048441,8.767e-05,2]
[423175660,1779904242000,-482.39849031,8.767e-05,2]
[423175709,1779904244000,-156.66039112,9.315e-05,2]
[423175718,1779904244000,-500.0,9.315e-05,2]
[423175710,1779904244000,-500.0,9.315e-05,2]
[423175714,1779904244000,-500.0,9.315e-05,2]
[423175711,1779904244000,-500.0,9.315e-05,2]
[423175713,1779904244000,-500.0,9.315e-05,2]
[423175712,1779904244000,-250.73,9.315e-05,2]
[423175715,1779904244000,-214.97,9.315e-05,2]
[423175720,1779904244000,-453.66,9.315e-05,2]
[423175723,1779904244000,-588.13,9.315e-05,2]
[423175717,1779904244000,-500.0,9.315e-05,2]
[423175721,1779904244000,-414.17,9.315e-05,2]
[423175706,1779904244000,-672.30243466,9.277e-05,2]
[423175722,1779904244000,-2416.47,9.315e-05,2]
[423175716,1779904244000,-529.69,9.315e-05,2]
[423175724,1779904244000,-500.0,9.315e-05,2]
[423175726,1779904244000,-500.0,9.315e-05,2]
[423175725,1779904244000,-500.0,9.315e-05,2]
[423175730,1779904244000,-500.0,9.589e-05,2]
[423175727,1779904244000,-500.0,9.315e-05,2]
[423175729,1779904244000,-720.0,9.403e-05,2]
[423175719,1779904244000,-500.0,9.315e-05,2]
[423175704,1779904244000,-500.0,9.041e-05,2]
[423175703,1779904244000,-500.0,9.041e-05,2]
[423175707,1779904244000,-151.5,9.315e-05,2]
[423175735,1779904244000,-340.34,9.589e-05,2]
[423175683,1779904244000,-5000.0,8.137e-05,2]
[423175686,1779904244000,-177.66866078,9.041e-05,2]
[423175685,1779904244000,-500.0,8.219e-05,2]
[423175687,1779904244000,-500.0,9.041e-05,2]
[423175684,1779904244000,-558.75375313,8.219e-05,2]
[423175688,1779904244000,-500.0,9.041e-05,2]
[423175689,1779904244000,-500.0,9.041e-05,2]
[423175693,1779904244000,-500.0,9.041e-05,2]
[423175691,1779904244000,-500.0,9.041e-05,2]
[423175708,1779904244000,-151.5,9.315e-05,2]
[423175690,1779904244000,-500.0,9.041e-05,2]
[423175694,1779904244000,-467.01,9.041e-05,2]
[423175695,1779904244000,-640.17,9.041e-05,2]
[423175696,1779904244000,-500.0,9.041e-05,2]
[423175699,1779904244000,-2416.47,9.041e-05,2]
[423175697,1779904244000,-500.0,9.041e-05,2]
[423175698,1779904244000,-500.0,9.041e-05,2]
[423175700,1779904244000,-500.0,9.041e-05,2]
[423175701,1779904244000,-500.0,9.041e-05,2]
[423175702,1779904244000,-500.0,9.041e-05,2]
[423175705,1779904244000,-500.0,9.041e-05,2]
[423175692,1779904244000,-500.0,9.041e-05,2]
[423175728,1779904244000,-500.0,9.315e-05,2]
[423175749,1779904244000,-489.5192704,9.863e-05,2]
[423175734,1779904244000,-536.31,9.589e-05,2]
[423175762,1779904244000,-500.0,0.0001041,2]
[423175764,1779904244000,-500.0,0.00010684,2]
[423175765,1779904244000,-288.59274562,0.00010684,2]
[423175763,1779904244000,-309.42,0.0001041,2]
[423175769,1779904244000,-500.0,0.00010958,2]
[423175766,1779904244000,-2127.87725438,0.00010684,2]
[423175767,1779904244000,-384.37878667,0.00010684,2]
[423175768,1779904244000,-115.62121333,0.00010684,2]
[423175770,1779904244000,-2416.47,0.00010958,2]
[423175771,1779904244000,-500.0,0.00010958,2]
[423175774,1779904244000,-2416.47,0.00011232,2]
[423175773,1779904244000,-500.0,0.00011232,2]
[423175772,1779904244000,-215.0,0.00010959,3]
[423175775,1779904244000,-500.0,0.00011232,2]
[423175776,1779904244000,-766.98895499,0.00011339,2]
[423175782,1779904244000,-2209.31187038,0.00011506,2]
[423175777,1779904244000,-1000.0,0.00011378,2]
[423175778,1779904244000,-648.0,0.00011381,2]
[423175733,1779904244000,-500.0,9.589e-05,2]
[423175780,1779904244000,-443.0,0.00011381,2]
[423175779,1779904244000,-185.0,0.00011381,2]
[423175760,1779904244000,-500.0,0.0001041,2]
[423175759,1779904244000,-864.0,0.00010344,2]
[423175781,1779904244000,-500.0,0.00011506,2]
[423175761,1779904244000,-2416.47,0.0001041,2]
[423175758,1779904244000,-500.0,0.00010136,2]
[423175732,1779904244000,-590.48,9.589e-05,2]
[423175731,1779904244000,-636.47,9.589e-05,2]
[423175736,1779904244000,-500.0,9.589e-05,2]
[423175738,1779904244000,-500.0,9.589e-05,2]
[423175737,1779904244000,-2416.47,9.589e-05,2]
[423175739,1779904244000,-500.0,9.589e-05,2]
[423175740,1779904244000,-500.0,9.589e-05,2]
[423175742,1779904244000,-500.0,9.589e-05,2]
[423175744,1779904244000,-500.0,9.863e-05,2]
[423175747,1779904244000,-2416.47,9.863e-05,2]
[423175748,1779904244000,-500.0,9.863e-05,2]
[423175743,1779904244000,-224.76975862,9.623e-05,2]
[423175745,1779904244000,-301.74,9.863e-05,2]
[423175741,1779904244000,-500.0,9.589e-05,2]
[423175751,1779904244000,-587.98,9.863e-05,2]
[423175750,1779904244000,-500.0,9.863e-05,2]
[423175753,1779904244000,-395.62,9.863e-05,2]
[423175756,1779904244000,-2416.47,0.00010136,2]
[423175754,1779904244000,-152.0,9.94e-05,2]
[423175755,1779904244000,-500.0,0.00010136,2]
[423175757,1779904244000,-500.0,0.00010136,2]
[423175746,1779904244000,-544.46,9.863e-05,2]
[423175802,1779904246000,-32.42687037,0.00011506,2]
[423175796,1779904246000,-500.0,8.219e-05,2]
[423175797,1779904246000,-563.43,8.219e-05,2]
[423175799,1779904246000,-152.0,8.392e-05,2]
[423175800,1779904246000,-194.99,8.493e-05,2]
[423175798,1779904246000,-500.0,8.219e-05,2]
[423175801,1779904246000,-207.15812962,0.00011506,2]
[423175822,1779904247000,-2416.47,0.00012876,2]
[423175824,1779904247000,-2416.47,0.0001315,2]
[423175823,1779904247000,-424.87246952,0.00013023,2]
[423175830,1779904247000,-152.0,0.00013457,7]
[423175827,1779904247000,-207.64760674,0.00013456,7]
[423175828,1779904247000,-178.02274073,0.00013456,7]
[423175825,1779904247000,-2416.47,0.00013424,2]
[423175829,1779904247000,-160.3908061,0.00013456,2]
[423175831,1779904247000,-152.0,0.000135,7]
[423175832,1779904247000,-152.0,0.00013527,7]
[423175834,1779904247000,-797.0,0.000136,2]
[423175820,1779904247000,-325.259,0.00012626,2]
[423175836,1779904247000,-3780.65,0.00013698,2]
[423175833,1779904247000,-152.0,0.00013527,7]
[423175826,1779904247000,-637.30870428,0.00013456,2]
[423175821,1779904247000,-464.42,0.00012876,2]
[423175803,1779904247000,-277.04312963,0.00011506,2]
[423175815,1779904247000,-244.0,0.00012516,2]
[423175835,1779904247000,-293.34358329,0.00013623,2]
[423175804,1779904247000,-177.07043991,0.00011622,2]
[423175805,1779904247000,-81.98623104,0.00011622,2]
[423175806,1779904247000,-500.0,0.0001178,2]
[423175808,1779904247000,-151.12,0.00012,2]
[423175807,1779904247000,-2416.47,0.0001178,2]
[423175810,1779904247000,-2416.47,0.00012054,2]
[423175809,1779904247000,-500.0,0.00012054,2]
[423175812,1779904247000,-2416.47,0.00012328,2]
[423175811,1779904247000,-500.0,0.00012328,2]
[423175814,1779904247000,-1000.0,0.00012516,2]
[423175813,1779904247000,-212.43623476,0.00012374,2]
[423175817,1779904247000,-500.0,0.00012602,2]
[423175816,1779904247000,-500.0,0.000126,2]
[423175819,1779904247000,-197.0,0.00012603,3]
[423175818,1779904247000,-2416.47,0.00012602,2]
[423175838,1779904247000,-500.0,0.00013698,2]
[423175853,1779904247000,-354.61278998,0.00013699,7]
[423175837,1779904247000,-500.0,0.00013698,2]
[423175859,1779904247000,-849.74493904,0.00013744,2]
[423175861,1779904247000,-356.04548147,0.00013744,7]
[423175860,1779904247000,-415.29521347,0.00013744,7]
[423175862,1779904247000,-320.78161221,0.00013744,2]
[423175863,1779904247000,-709.22557996,0.00013744,7]
[423175868,1779904247000,-500.0,0.00014,2]
[423175858,1779904247000,-686.79251197,0.00013731,2]
[423175865,1779904247000,-492.0,0.00013768,2]
[423175869,1779904247000,-5528.86869679,0.00014,2]
[423175867,1779904247000,-2416.47,0.00013972,2]
[423175866,1779904247000,-152.0,0.00013771,7]
[423175871,1779904247000,-9897.90519576,0.00014,2]
[423175870,1779904247000,-355.3,0.00014,2]
[423175872,1779904247000,-1011.78989303,0.00014,8]
[423175864,1779904247000,-1000.0,0.00013768,2]
[423175857,1779904247000,-269.18629835,0.0001372,2]
[423175852,1779904247000,-177.30639499,0.00013699,7]
[423175855,1779904247000,-152.0,0.000137,7]
[423175840,1779904247000,-500.0,0.00013698,2]
[423175845,1779904247000,-1000.0,0.00013699,2]
[423175842,1779904247000,-296.84770447,0.00013698,2]
[423175843,1779904247000,-2416.47,0.00013698,2]
[423175844,1779904247000,-179.9820018,0.00013699,2]
[423175841,1779904247000,-500.0,0.00013698,2]
[423175847,1779904247000,-366.317161,0.00013699,2]
[423175848,1779904247000,-531.91918497,0.00013699,7]
[423175849,1779904247000,-171.69812799,0.00013699,2]
[423175846,1779904247000,-794.097847,0.00013699,2]
[423175850,1779904247000,-343.39625599,0.00013699,2]
[423175873,1779904247000,-45581.95567355,0.00014,14]
[423175854,1779904247000,-510.79720212,0.00013699,2]
[423175851,1779904247000,-515.09438398,0.00013699,2]
[423175856,1779904247000,-152.0,0.000137,7]
[423175839,1779904247000,-500.0,0.00013698,2]
[423175903,1779904817000,5000.0,5.005e-05,2]
[423175905,1779904832000,5000.0,5.005e-05,2]
[423175906,1779904854000,5000.0,5.005e-05,2]
[423175909,1779904873000,-1543.98299434,5.061e-05,2]
[423175910,1779904876000,5000.0,5.005e-05,2]
[423175912,1779904898000,5000.0,5.005e-05,2]
[423175914,1779904920000,5000.0,5.005e-05,2]
[423175915,1779904942000,5000.0,5.005e-05,2]
[423175917,1779904965000,5000.0,5.005e-05,2]
[423175918,1779904986000,3446.38637101,5.005e-05,2]
[423175939,1779905036000,5000.0,5.005e-05,2]
[423175940,1779905051000,5000.0,5.005e-05,2]
[423175941,1779905058000,2199.61865669,5.005e-05,2]
[423176090,1779905432000,-300.0,5.374e-05,2]
[423176088,1779905432000,-32.36381407,5.374e-05,2]
[423176094,1779905432000,-300.0,5.374e-05,2]
[423176092,1779905432000,-300.0,5.374e-05,2]
[423176101,1779905432000,-1164.32270348,5.511e-05,2]
[423176095,1779905432000,-300.0,5.374e-05,2]
[423176097,1779905432000,-300.0,5.374e-05,2]
[423176100,1779905432000,-481.04422253,5.48e-05,2]
[423176081,1779905432000,-300.0,5.374e-05,2]
[423176096,1779905432000,-300.0,5.374e-05,2]
[423176077,1779905432000,-300.0,5.374e-05,2]
[423176086,1779905432000,-267.63618593,5.374e-05,2]
[423176071,1779905432000,-300.0,5.374e-05,2]
[423176075,1779905432000,-300.0,5.374e-05,2]
[423176073,1779905432000,-300.0,5.374e-05,2]
[423176083,1779905432000,-300.0,5.374e-05,2]
[423176066,1779905432000,-300.0,5.261e-05,2]
[423176069,1779905432000,-207.9998702,5.27e-05,2]
[423176067,1779905432000,-300.0,5.261e-05,2]
[423176058,1779905432000,-186.36394387,5.175e-05,2]
[423176060,1779905432000,-300.0,5.261e-05,2]
[423176098,1779905432000,-300.0,5.374e-05,2]
[423176079,1779905432000,-300.0,5.374e-05,2]
[423176099,1779905432000,-118.95577747,5.48e-05,2]
[423176063,1779905432000,-1200.0,5.261e-05,2]
[423176107,1779905432000,-250.63330992,5.511e-05,2]
[423176131,1779905432000,-500.0,8.219e-05,2]
[423176108,1779905432000,-720.0,6.029e-05,2]
[423176127,1779905432000,-500.0,8.219e-05,2]
[423176128,1779905432000,-501.16396198,8.219e-05,2]
[423176129,1779905432000,-500.0,8.219e-05,2]
[423176125,1779905432000,-500.80952637,8.219e-05,2]
[423176122,1779905432000,-500.0,8.219e-05,2]
[423176124,1779905432000,-500.0,8.219e-05,2]
[423176123,1779905432000,-500.0,8.219e-05,2]
[423176126,1779905432000,-501.7402829,8.219e-05,2]
[423176121,1779905432000,-500.0,8.219e-05,2]
[423176130,1779905432000,-200.14398247,8.219e-05,2]
[423176120,1779905432000,-500.0,8.219e-05,2]
[423176110,1779905432000,-180.731869,6.648e-05,2]
[423176109,1779905432000,-864.0,6.631e-05,2]
[423176112,1779905432000,-219.90945376,7.175e-05,2]
[423176114,1779905432000,-180.731869,7.581e-05,2]
[423176111,1779905432000,-180.731869,7.114e-05,2]
[423176113,1779905432000,-1000.0,7.294e-05,2]
[423176117,1779905432000,-180.731869,8.047e-05,2]
[423176116,1779905432000,-244.0,8.024e-05,2]
[423176118,1779905432000,-159.90764947,8.211e-05,2]
[423176115,1779905432000,-1000.0,8.024e-05,2]
[423176119,1779905432000,-640.2127,8.219e-05,2]
[423176135,1779905433000,-500.0,8.219e-05,2]
[423176133,1779905433000,-500.0,8.219e-05,2]
[423176134,1779905433000,-500.0,8.219e-05,2]
[423176132,1779905433000,-500.0,8.219e-05,2]
[423176138,1779905433000,-500.0,8.219e-05,2]
[423176136,1779905433000,-500.0,8.219e-05,2]
[423176140,1779905433000,-500.0,8.219e-05,2]
[423176139,1779905433000,-500.0,8.219e-05,2]
[423176141,1779905433000,-500.0,8.219e-05,2]
[423176142,1779905433000,-500.0,8.219e-05,2]
[423176143,1779905433000,-56.74669347,8.219e-05,2]
[423176144,1779905433000,-443.25330653,8.219e-05,2]
[423176145,1779905433000,-254.89753604,8.219e-05,2]
[423176137,1779905433000,-500.0,8.219e-05,2]
[423176146,1779905436000,178.1709,0.00019177,120]
[423176169,1779905438000,-500.0,8.219e-05,2]
[423176163,1779905438000,-2536.51378436,8.137e-05,2]
[423176166,1779905438000,-500.0,8.219e-05,2]
[423176164,1779905438000,-2463.48621564,8.137e-05,2]
[423176165,1779905438000,-248.31873987,8.219e-05,2]
[423176168,1779905438000,-500.0,8.219e-05,2]
[423176167,1779905438000,-500.0,8.219e-05,2]
[423176170,1779905438000,-500.0,8.219e-05,2]
[423176178,1779905438000,-500.0,8.219e-05,2]
[423176175,1779905438000,-307.6268726,8.219e-05,2]
[423176173,1779905438000,-500.0,8.219e-05,2]
[423176176,1779905438000,-500.0,8.219e-05,2]
[423176177,1779905438000,-500.0,8.219e-05,2]
[423176180,1779905438000,-557.26802676,8.219e-05,2]
[423176182,1779905438000,-451.95677979,8.219e-05,2]
[423176181,1779905438000,-48.04322021,8.219e-05,2]
[423176179,1779905438000,-500.0,8.219e-05,2]
[423176172,1779905438000,-500.0,8.219e-05,2]
[423176221,1779905439000,-500.0,8.219e-05,2]
[423176224,1779905439000,-500.0,8.219e-05,2]
[423176223,1779905439000,-501.41860631,8.219e-05,2]
[423176228,1779905439000,-500.0,8.219e-05,2]
[423176222,1779905439000,-500.0,8.219e-05,2]
[423176218,1779905439000,-302.0,8.219e-05,2]
[423176211,1779905439000,-522.06016921,8.219e-05,2]
[423176216,1779905439000,-500.0,8.219e-05,2]
[423176226,1779905439000,-500.0,8.219e-05,2]
[423176220,1779905439000,-500.0,8.219e-05,2]
[423176219,1779905439000,-500.0,8.219e-05,2]
[423176212,1779905439000,-500.0,8.219e-05,2]
[423176227,1779905439000,-527.89022961,8.219e-05,2]
[423176233,1779905439000,-501.3466403,8.219e-05,2]
[423176225,1779905439000,-500.0,8.219e-05,2]
[423176231,1779905439000,-500.16796065,8.219e-05,2]
[423176230,1779905439000,-500.0,8.219e-05,2]
[423176232,1779905439000,-500.0,8.219e-05,2]
[423176238,1779905439000,-391.64443265,8.219e-05,2]
[423176242,1779905439000,-500.0,8.219e-05,2]
[423176234,1779905439000,-500.0,8.219e-05,2]
[423176236,1779905439000,-502.86407608,8.219e-05,2]
[423176240,1779905439000,-500.0,8.219e-05,2]
[423176235,1779905439000,-500.0,8.219e-05,2]
[423176237,1779905439000,-500.0,8.219e-05,2]
[423176241,1779905439000,-500.0,8.219e-05,2]
[423176210,1779905439000,-500.0,8.219e-05,2]
[423176229,1779905439000,-500.0,8.219e-05,2]
[423176209,1779905439000,-500.0,8.219e-05,2]
[423176184,1779905439000,-500.0,8.219e-05,2]
[423176213,1779905439000,-500.0,8.219e-05,2]
[423176239,1779905439000,-108.35556735,8.219e-05,2]
[423176183,1779905439000,-500.41584361,8.219e-05,2]
[423176185,1779905439000,-501.07805286,8.219e-05,2]
[423176187,1779905439000,-500.0,8.219e-05,2]
[423176186,1779905439000,-500.0,8.219e-05,2]
[423176188,1779905439000,-500.0,8.219e-05,2]
[423176190,1779905439000,-500.0,8.219e-05,2]
[423176191,1779905439000,-500.0,8.219e-05,2]
[423176192,1779905439000,-500.0,8.219e-05,2]
[423176189,1779905439000,-500.44445416,8.219e-05,2]
[423176193,1779905439000,-500.55290999,8.219e-05,2]
[423176196,1779905439000,-500.0,8.219e-05,2]
[423176195,1779905439000,-500.0,8.219e-05,2]
[423176197,1779905439000,-500.0,8.219e-05,2]
[423176200,1779905439000,-500.0,8.219e-05,2]
[423176199,1779905439000,-500.0,8.219e-05,2]
[423176203,1779905439000,-500.0,8.219e-05,2]
[423176202,1779905439000,-500.0,8.219e-05,2]
[423176205,1779905439000,-500.0,8.219e-05,2]
[423176198,1779905439000,-500.0,8.219e-05,2]
[423176201,1779905439000,-500.0,8.219e-05,2]
[423176204,1779905439000,-500.0,8.219e-05,2]
[423176206,1779905439000,-500.0,8.219e-05,2]
[423176208,1779905439000,-500.0,8.219e-05,2]
[423176207,1779905439000,-500.0,8.219e-05,2]
[423176217,1779905439000,-500.0,8.219e-05,2]
[423176215,1779905439000,-500.0,8.219e-05,2]
[423176214,1779905439000,-501.49393242,8.219e-05,2]
[423176244,1779905439000,-500.0,8.219e-05,2]
[423176194,1779905439000,-500.0,8.219e-05,2]
[423176243,1779905439000,-503.51377231,8.219e-05,2]
[423176282,1779905439000,-500.0,8.219e-05,2]
[423176280,1779905439000,-500.0,8.219e-05,2]
[423176281,1779905439000,-500.0,8.219e-05,2]
[423176284,1779905439000,-500.57521612,8.219e-05,2]
[423176279,1779905439000,-500.0,8.219e-05,2]
[423176290,1779905439000,-500.0,8.219e-05,2]
[423176289,1779905439000,-500.0,8.219e-05,2]
[423176295,1779905439000,-500.0,8.219e-05,2]
[423176283,1779905439000,-500.0,8.219e-05,2]
[423176294,1779905439000,-500.0,8.219e-05,2]
[423176291,1779905439000,-500.0,8.219e-05,2]
[423176285,1779905439000,-380.55839579,8.219e-05,2]
[423176302,1779905439000,-500.0,8.219e-05,2]
[423176288,1779905439000,-500.0,8.219e-05,2]
[423176287,1779905439000,-571.93656023,8.219e-05,2]
[423176293,1779905439000,-291.00342421,8.219e-05,2]
[423176273,1779905439000,-500.0,8.219e-05,2]
[423176297,1779905439000,-500.0,8.219e-05,2]
[423176296,1779905439000,-500.0,8.219e-05,2]
[423176298,1779905439000,-500.0,8.219e-05,2]
[423176305,1779905439000,-204.70578632,8.219e-05,2]
[423176301,1779905439000,-500.0,8.219e-05,2]
[423176303,1779905439000,-542.11614837,8.219e-05,2]
[423176300,1779905439000,-500.0,8.219e-05,2]
[423176299,1779905439000,-501.80870024,8.219e-05,2]
[423176304,1779905439000,-500.0,8.219e-05,2]
[423176245,1779905439000,-301.47119287,8.219e-05,2]
[423176277,1779905439000,-506.61467452,8.219e-05,2]
[423176275,1779905439000,-500.0,8.219e-05,2]
[423176286,1779905439000,-500.33373265,8.219e-05,2]
[423176278,1779905439000,-500.0,8.219e-05,2]
[423176247,1779905439000,-472.1116177,8.219e-05,2]
[423176250,1779905439000,-501.25136034,8.219e-05,2]
[423176249,1779905439000,-500.0,8.219e-05,2]
[423176248,1779905439000,-27.8883823,8.219e-05,2]
[423176276,1779905439000,-500.0,8.219e-05,2]
[423176251,1779905439000,-500.0,8.219e-05,2]
[423176252,1779905439000,-500.0,8.219e-05,2]
[423176254,1779905439000,-232.296473,8.219e-05,2]
[423176253,1779905439000,-500.0,8.219e-05,2]
[423176256,1779905439000,-501.29792266,8.219e-05,2]
[423176255,1779905439000,-267.703527,8.219e-05,2]
[423176257,1779905439000,-183.97579885,8.219e-05,2]
[423176259,1779905439000,-500.0,8.219e-05,2]
[423176258,1779905439000,-316.02420115,8.219e-05,2]
[423176246,1779905439000,-500.0,8.219e-05,2]
[423176261,1779905439000,-500.0,8.219e-05,2]
[423176272,1779905439000,-500.0,8.219e-05,2]
[423176269,1779905439000,-500.0,8.219e-05,2]
[423176271,1779905439000,-500.0,8.219e-05,2]
[423176270,1779905439000,-500.0,8.219e-05,2]
[423176265,1779905439000,-526.70886183,8.219e-05,2]
[423176268,1779905439000,-569.67,8.219e-05,2]
[423176274,1779905439000,-500.0,8.219e-05,2]
[423176264,1779905439000,-501.32379177,8.219e-05,2]
[423176263,1779905439000,-500.0,8.219e-05,2]
[423176267,1779905439000,-500.0,8.219e-05,2]
[423176262,1779905439000,-500.0,8.219e-05,2]
[423176266,1779905439000,-501.64525682,8.219e-05,2]
[423176260,1779905439000,-500.0,8.219e-05,2]
[423176320,1779905440000,-295.29421368,8.219e-05,2]
[423176323,1779905440000,-276.24219639,8.219e-05,2]
[423176324,1779905440000,-512.79201713,8.219e-05,2]
[423176321,1779905440000,-500.0,8.219e-05,2]
[423176322,1779905440000,-223.75780361,8.219e-05,2]
[423176328,1779905440000,-500.0,8.219e-05,2]